bitfinex-derivatives/quotes_SOLF0:USTF0_20250309
["timestamp","ask_amount","ask_price","bid_price","bid_amount"]
[1741499821439,7.2027,138.86,138.85,0.04545373]
[1741499822333,7.2027,138.86,138.82,7.2046]
[1741499822539,7.82849894,138.85,138.82,7.2046]
[1741499823640,7.87722638,138.85,138.82,7.25611435]
[1741499824042,7.87722638,138.85,138.82,0.05151435]
[1741499824240,15.08082638,138.85,138.82,0.05151435]
[1741499824436,7.87722638,138.85,138.82,0.05151435]
[1741499824837,7.87722638,138.85,138.83,7.204]
[1741499826243,7.87722638,138.85,138.83,7.2042]
[1741499826640,7.87722638,138.85,138.82,0.05151435]
[1741499826842,7.87722638,138.85,138.82,7.25611435]
[1741499827642,15.08092638,138.85,138.82,0.05151435]
[1741499827837,7.87722638,138.85,138.82,0.05151435]
[1741499828544,7.87722638,138.85,138.82,7.25601435]
[1741499828740,7.87722638,138.85,138.82,0.05151435]
[1741499829447,7.87722638,138.85,138.83,7.2043]
[1741499830242,7.87722638,138.85,138.84,7.2038]
[1741499832439,0.04872744,138.85,138.84,7.2038]
[1741499833543,0.04872744,138.85,138.82,0.05151435]
[1741499833740,7.87722638,138.85,138.82,0.05151435]
[1741499834143,15.08052638,138.85,138.82,0.05151435]
[1741499835351,7.82849894,138.83,138.82,0.05151435]
[1741499836348,7.82849894,138.83,138.77,25.68]
[1741499836549,15.03279894,138.83,138.79,7.2061]
[1741499837052,7.82849894,138.81,138.76,33.50849894]
[1741499837254,7.82849894,138.81,138.76,25.68]
[1741499837450,7.82849894,138.81,138.75,163.43434011]
[1741499837651,0.05085664,138.8,138.75,163.43434011]
[1741499838047,0.05085664,138.8,138.77,7.2071]
[1741499839549,7.82849894,138.79,138.75,170.64264011]
[1741499839752,33.50849894,138.79,138.75,7.2083]
[1741499839953,7.82849894,138.77,138.74,39.7461294]
[1741499840253,7.87668341,138.77,138.74,39.7461294]
[1741499841249,7.82849894,138.75,138.74,39.7461294]
[1741499842252,7.82849894,138.75,138.74,9.93653235]
[1741499842456,7.82849894,138.75,138.72,7.2098]
[1741499842852,7.88158751,138.75,138.72,7.2098]
[1741499843156,7.88158751,138.75,138.73,7.2095]
[1741499845658,7.88158751,138.75,138.74,7.209]
[1741499846554,7.88158751,138.75,138.67,25.68]
[1741499846854,7.82849894,138.73,138.67,33.50849894]
[1741499847054,0.0545805,138.72,138.69,7.82849894]
[1741499848256,0.0545805,138.72,138.71,7.2105]
[1741499854260,0.0545805,138.72,138.71,15.03899894]
[1741499860363,0.0545805,138.72,138.71,7.2105]
[1741499882587,0.0545805,138.72,138.71,15.03899894]
[1741499884487,0.0545805,138.72,138.71,7.2105]
[1741499884680,0.0545805,138.72,138.71,15.03899894]
[1741499884881,0.0545805,138.72,138.71,40.73899894]
[1741499885681,7.82849894,138.77,138.71,33.52849894]
[1741499885887,7.82849894,138.79,138.73,7.82849894]
[1741499886686,0.04907318,138.77,138.75,7.87632954]
[1741499886991,0.04907318,138.77,138.75,0.0478306]
[1741499887180,0.04907318,138.77,138.75,7.2559306]
[1741499887385,0.04907318,138.77,138.75,0.0478306]
[1741499887890,0.04907318,138.77,138.75,7.2562306]
[1741499888690,0.04907318,138.77,138.76,7.2079]
[1741499889090,7.318e-05,138.77,138.76,7.2079]
[1741499890282,33.50849894,138.85,138.75,7.87632954]
[1741499890489,33.50849894,138.85,138.79,7.82849894]
[1741499890689,7.2039,138.84,138.79,33.50849894]
[1741499891194,33.50849894,138.85,138.79,33.50849894]
[1741499891394,7.88124579,138.83,138.8,0.04908818]
[1741499891889,7.2048,138.82,138.8,0.04908818]
[1741499893196,7.82849894,138.81,138.8,0.04908818]
[1741499893392,33.50849894,138.81,138.75,33.50849894]
[1741499893593,7.82849894,138.79,138.75,33.50849894]
[1741499893897,15.03489894,138.79,138.75,40.71679894]
[1741499894295,15.03489894,138.79,138.75,32.8883]
[1741499894597,0.05271984,138.78,138.76,0.04693103]
[1741499896199,7.25981984,138.78,138.76,0.04693103]
[1741499896798,7.82849894,138.77,138.76,0.04693103]
[1741499900199,15.03589894,138.77,138.76,0.04693103]
[1741499901297,7.82849894,138.77,138.76,0.04693103]
[1741499902007,15.03589894,138.77,138.76,0.04693103]
[1741499902305,7.82849894,138.77,138.76,0.04693103]
[1741499903507,25.73271984,138.78,138.76,0.04693103]
[1741499904813,32.93971984,138.78,138.76,0.04693103]
[1741499905107,7.82849894,138.77,138.71,7.82849894]
[1741499905310,7.2079,138.76,138.73,7.2093]
[1741499907507,15.03609894,138.77,138.73,7.2093]
[1741499907709,7.82849894,138.77,138.74,7.2087]
[1741499909308,7.82849894,138.77,138.71,7.82849894]
[1741499909514,25.73271984,138.78,138.75,7.2081]
[1741499911617,32.93961984,138.78,138.75,7.2081]
[1741499911817,25.73271984,138.78,138.75,7.2081]
[1741499912017,25.73271984,138.78,138.71,7.82849894]
[1741499912218,7.82849894,138.77,138.71,7.82849894]
[1741499912719,15.03619894,138.77,138.73,7.2092]
[1741499913920,15.03619894,138.77,138.71,7.82849894]
[1741499914219,7.82849894,138.77,138.71,7.82849894]
[1741499914615,7.82849894,138.77,138.75,7.2081]
[1741499914821,7.82849894,138.77,138.71,7.82849894]
[1741499916419,7.82849894,138.77,138.68,1.9775]
[1741499916420,7.82849894,138.75,138.68,1.9775]
[1741499916619,7.82849894,138.75,138.68,9.80599894]
[1741499916620,33.50849894,138.75,138.68,9.80599894]
[1741499916815,0.05136953,138.73,138.68,9.80599894]
[1741499917121,0.05136953,138.73,138.7,7.2107]
[1741499917611,7.26086953,138.73,138.7,7.2107]
[1741499917818,0.05136953,138.73,138.7,7.2107]
[1741499919323,0.05136953,138.73,138.68,1.9775]
[1741499919521,0.05136953,138.73,138.71,7.2105]
[1741499919721,7.87986847,138.73,138.71,7.2105]
[1741499921925,7.87986847,138.73,138.68,1.9775]
[1741499922622,7.87986847,138.73,138.72,7.21]
[1741499923226,0.05136953,138.73,138.72,7.21]
[1741499927430,7.2066,138.79,138.72,7.82849894]
[1741499927431,7.82849894,138.79,138.72,7.82849894]
[1741499927630,7.82849894,138.79,138.77,7.2074]
[1741499928530,7.88238538,138.79,138.77,7.25463063]
[1741499929030,7.88238538,138.79,138.77,0.04723063]
[1741499929230,15.08878538,138.79,138.77,0.04723063]
[1741499929430,40.76878538,138.79,138.77,0.04723063]
[1741499930629,7.2075,138.77,138.7,7.82849894]
[1741499930824,15.03599894,138.77,138.7,33.50849894]
[1741499931025,7.82849894,138.77,138.7,33.50849894]
[1741499931226,15.03709894,138.75,138.68,9.80599894]
[1741499931431,15.03709894,138.75,138.71,7.2102]
[1741499931626,0.05039045,138.74,138.71,7.2102]
[1741499931836,0.05039045,138.74,138.72,0.02354509]
[1741499932741,0.05039045,138.74,138.72,7.23354509]
[1741499935338,0.05039045,138.74,138.72,0.02354509]
[1741499941441,0.05039045,138.74,138.72,7.23354509]
[1741499942429,0.05039045,138.74,138.73,7.2095]
[1741499942635,0.05039045,138.74,138.72,0.02354509]
[1741499943241,0.05039045,138.74,138.72,7.23314509]
[1741499949645,0.05039045,138.74,138.72,0.02354509]
[1741499949945,0.05039045,138.74,138.73,7.2095]
[1741499953545,0.05039045,138.74,138.72,0.02354509]
[1741499954746,7.25939045,138.74,138.72,0.02354509]
[1741499955846,0.05039045,138.74,138.72,0.02354509]
[1741499957250,7.25939045,138.74,138.72,0.02354509]
[1741499957451,0.05039045,138.74,138.72,0.02354509]
[1741499958754,7.25969045,138.74,138.72,0.02354509]
[1741499959459,7.82849894,138.73,138.72,0.02354509]
[1741499959650,15.03799894,138.73,138.68,7.82849894]
[1741499959853,40.71799894,138.73,138.68,7.82849894]
[1741499960047,33.50849894,138.73,138.68,7.82849894]
[1741499960552,33.50849894,138.73,138.7,7.2108]
[1741499961257,25.68,138.73,138.68,7.82849894]
[1741499962550,25.68,138.73,138.72,7.21]
[1741499963255,7.87888939,138.74,138.72,7.21]
[1741499963559,0.05039045,138.74,138.73,7.2095]
[1741499963759,1.9882,138.75,138.73,7.2095]
[1741499963961,2.03822753,138.75,138.73,7.2095]
[1741499965257,2.03822753,138.75,138.72,7.2096]
[1741499965658,2.03822753,138.75,138.7,7.82849894]
[1741499965860,2.03822753,138.75,138.73,7.2094]
[1741499966862,2.03822753,138.75,138.7,7.82849894]
[1741499967060,2.03822753,138.75,138.74,7.209]
[1741499967061,0.05002753,138.75,138.74,7.209]
[1741499969565,0.05002753,138.75,138.74,15.03749894]
[1741499973668,0.05002753,138.75,138.74,7.209]
[1741499973879,0.05002753,138.75,138.73,7.2093]
[1741499974980,0.05002753,138.75,138.72,7.82849894]
[1741499975175,0.05002753,138.75,138.74,7.209]
[1741499983890,25.68,138.79,138.78,7.2069]
[1741499984090,15.57694041,138.85,138.76,7.82849894]
[1741499984091,7.82849894,138.83,138.76,7.82849894]
[1741499984290,33.50849894,138.83,138.76,7.82849894]
[1741499984485,15.03309894,138.83,138.79,7.2061]
[1741499985089,0.04958269,138.82,138.8,0.04771262]
[1741499985794,0.04958269,138.82,138.81,7.2053]
[1741499988190,0.04958269,138.82,138.8,7.25341262]
[1741499988692,0.04958269,138.82,138.8,0.04771262]
[1741499989684,7.25448269,138.82,138.8,0.04771262]
[1741499989985,7.82849894,138.81,138.8,0.04771262]
[1741499990585,0.04958269,138.82,138.8,0.04771262]
[1741499993701,7.25438269,138.82,138.8,0.04771262]
[1741499996199,0.04958269,138.82,138.8,0.04771262]
[1741499999196,7.82849894,138.81,138.8,0.04771262]
[1741499999997,25.70958269,138.82,138.8,0.04771262]
[1741500000401,32.91458269,138.82,138.8,0.04771262]
[1741500001004,25.70958269,138.82,138.8,0.04771262]
[1741500001208,25.70958269,138.82,138.8,7.25341262]
[1741500001404,0.04958269,138.82,138.8,7.25341262]
[1741500002005,7.25438269,138.82,138.8,0.04771262]
[1741500002707,0.04958269,138.82,138.8,0.04771262]
[1741500003503,15.03379894,138.81,138.8,0.04771262]
[1741500003806,7.82849894,138.81,138.75,25.66]
[1741500004007,7.82849894,138.79,138.73,263.5]
[1741500004202,7.207,138.78,138.74,7.2088]
[1741500005009,0.05089142,138.77,138.74,7.2088]
[1741500005808,0.05089142,138.77,138.72,33.48849894]
[1741500006007,0.05089142,138.77,138.75,7.2084]
[1741500006209,0.05089142,138.77,138.72,33.48849894]
[1741500007410,0.05089142,138.77,138.75,7.2079]
[1741500007801,0.05089142,138.77,138.74,7.82849894]
[1741500008206,0.05089142,138.77,138.76,15.03639894]
[1741500008605,9.142e-05,138.77,138.76,15.03639894]
[1741500009009,9.142e-05,138.77,138.76,16.97579894]
[1741500010704,9.81079894,138.85,138.76,13.36789894]
[1741500010905,9.81079894,138.85,138.82,7.2046]
[1741500011412,9.81079894,138.85,138.8,7.82849894]
[1741500011814,17.01439894,138.85,138.8,7.82849894]
[1741500012011,0.04779717,138.84,138.81,0.05108936]
[1741500012409,7.25159717,138.84,138.81,0.05108936]
[1741500012612,7.82849894,138.83,138.81,0.05108936]
[1741500013016,7.2048,138.82,138.81,0.05108936]
[1741500013611,7.82849894,138.83,138.74,7.82849894]
[1741500013814,7.82849894,138.78,138.73,7.2091]
[1741500014217,7.2078,138.77,138.73,7.2091]
[1741500014519,7.82849894,138.78,138.73,7.2091]
[1741500014716,0.05450273,138.76,138.73,17.14563235]
[1741500016914,0.05450273,138.76,138.73,9.93653235]
[1741500017111,0.05450273,138.76,138.75,7.2085]
[1741500019119,7.2085,138.75,138.71,7.2105]
[1741500019324,7.2085,138.75,138.69,7.82849894]
[1741500019714,0.04857916,138.73,138.69,7.82849894]
[1741500020021,0.04857916,138.73,138.67,33.48849894]
[1741500020922,7.21,138.72,138.68,7.2118]
[1741500021116,0.04857916,138.73,138.68,7.2118]
[1741500021420,7.82849894,138.72,138.68,7.2118]
[1741500022320,7.82849894,138.72,138.69,7.2115]
[1741500022619,7.82849894,138.72,138.67,33.48849894]
[1741500023518,7.82849894,138.72,138.69,7.2115]
[1741500024521,7.82849894,138.72,138.57,305.39738201]
[1741500024823,7.82849894,138.72,138.66,7.82849894]
[1741500025016,0.05117741,138.69,138.66,7.82849894]
[1741500025215,0.05117741,138.69,138.67,7.2121]
[1741500025418,0.05117741,138.69,138.66,7.82849894]
[1741500025619,0.05117741,138.69,138.67,7.2126]
[1741500026817,0.05117741,138.69,138.64,25.68]
[1741500027018,0.05117741,138.69,138.67,7.2126]
[1741500027620,0.05117741,138.69,138.68,7.2121]
[1741500028720,7.741e-05,138.69,138.68,7.2121]
[1741500029127,7.741e-05,138.69,138.68,9.2741]
[1741500037126,7.741e-05,138.69,138.68,7.2121]
[1741500063055,7.741e-05,138.69,138.67,7.26191367]
[1741500064449,7.82849894,138.68,138.67,0.04951367]
[1741500065049,7.82849894,138.68,138.67,7.26211367]
[1741500065355,7.82849894,138.68,138.67,0.04951367]
[1741500065855,33.50849894,138.68,138.62,9.93653235]
[1741500066055,7.82849894,138.66,138.62,9.93653235]
[1741500066457,7.82849894,138.66,138.63,7.2146]
[1741500067055,7.87906873,138.66,138.63,7.2146]
[1741500067255,7.82849894,138.64,138.62,9.93653235]
[1741500068260,7.82849894,138.64,138.6,39.7461294]
[1741500068455,7.82849894,138.62,138.6,24.2484294]
[1741500068659,25.68,138.61,138.59,79.49225881]
[1741500068960,7.82849894,138.6,138.59,79.49225881]
[1741500069460,7.82849894,138.6,138.59,25.18808821]
[1741500070246,7.82849894,138.6,138.58,119.23838822]
[1741500072756,7.2168,138.59,138.57,232.80007907]
[1741500072962,33.52849894,138.58,138.57,232.80007907]
[1741500073554,33.52849894,138.58,138.5,11.36919894]
[1741500074164,0.04979668,138.56,138.52,7.82849894]
[1741500074569,0.04979668,138.56,138.55,7.2189]
[1741500081270,33.52849894,138.6,138.54,7.82849894]
[1741500081470,238.02,138.66,138.56,7.82849894]
[1741500081774,7.82849894,138.61,138.56,7.82849894]
[1741500082471,0.05337765,138.6,138.59,7.2164]
[1741500082671,0.05337765,138.6,138.57,0.04690978]
[1741500082974,7.82849894,138.59,138.57,7.26420978]
[1741500084474,7.82849894,138.59,138.57,0.04690978]
[1741500084675,33.52849894,138.59,138.57,0.04690978]
[1741500085474,33.52849894,138.59,138.57,7.26470978]
[1741500086170,33.52849894,138.59,138.57,0.04690978]
[1741500087283,7.2173,138.58,138.57,0.04690978]
[1741500087777,10.8173,138.58,138.57,0.04690978]
[1741500088078,7.2173,138.58,138.57,0.04690978]
[1741500089683,10.8173,138.58,138.57,0.04690978]
[1741500090776,7.2173,138.58,138.57,0.04690978]
[1741500095683,241.8,138.58,138.38,194.0]
[1741500095881,7.82849894,138.49,138.43,11.69769894]
[1741500096578,7.82849894,138.49,138.43,3.8692]
[1741500096780,7.82849894,138.47,138.43,3.8692]
[1741500096981,7.82849894,138.47,138.43,11.69769894]
[1741500096982,0.05524458,138.47,138.43,11.69769894]
[1741500097590,0.05524458,138.47,138.43,18.92239894]
[1741500097787,0.05524458,138.47,138.43,11.69769894]
[1741500097986,33.56849894,138.5,138.43,11.69769894]
[1741500098186,33.56849894,138.5,138.45,7.224]
[1741500098385,33.56849894,138.5,138.43,11.69769894]
[1741500098585,40.78999894,138.5,138.43,11.69769894]
[1741500098781,33.56849894,138.5,138.43,11.69769894]
[1741500099089,0.05000001,138.48,138.45,0.05196289]
[1741500099291,25.78,138.51,138.47,7.223]
[1741500099590,25.78,138.51,138.45,7.82849894]
[1741500100389,0.05490814,138.49,138.47,0.04939124]
[1741500101793,25.78,138.51,138.47,0.04939124]
[1741500101794,7.82849894,138.52,138.47,0.04939124]
[1741500101988,7.82849894,138.52,138.46,7.82849894]
[1741500102892,0.05233224,138.5,138.48,0.05219483]
[1741500103392,30.11446583,138.56,138.48,0.05219483]
[1741500103393,7.82849894,138.54,138.51,7.2208]
[1741500104397,7.88382166,138.54,138.52,7.2201]
[1741500104892,7.88382166,138.54,138.51,0.04885934]
[1741500105092,7.88382166,138.54,138.52,7.2203]
[1741500105486,0.05532272,138.54,138.53,7.2199]
[1741500105683,7.82849894,138.57,138.51,7.87735828]
[1741500106285,7.82849894,138.57,138.54,7.219]
[1741500106485,7.82849894,138.57,138.51,7.82849894]
[1741500106890,0.05499033,138.55,138.54,7.2194]
[1741500109498,0.05499033,138.55,138.53,7.27329579]
[1741500110592,0.05499033,138.55,138.54,7.2194]
[1741500111499,0.05499033,138.55,138.53,7.27339579]
[1741500111692,0.05499033,138.55,138.53,0.05359579]
[1741500113303,0.05499033,138.55,138.53,7.27349579]
[1741500114398,7.82849894,138.59,138.53,7.88209473]
[1741500114603,33.58849894,138.59,138.53,7.88209473]
[1741500115004,33.58849894,138.59,138.56,7.2181]
[1741500115399,33.58849894,138.59,138.53,7.82849894]
[1741500115605,7.82849894,138.57,138.56,0.04901756]
[1741500118306,7.82849894,138.58,138.56,0.04901756]
[1741500119604,7.2178,138.57,138.56,0.04901756]
[1741500119804,7.82849894,138.58,138.56,0.04901756]
[1741500121403,7.2178,138.57,138.56,0.04901756]
[1741500122000,15.04609894,138.58,138.56,0.04901756]
[1741500122207,7.82849894,138.58,138.56,0.04901756]
[1741500122811,7.2178,138.57,138.56,0.04901756]
[1741500136823,7.82849894,138.58,138.56,0.04901756]
[1741500137123,30.16661512,138.59,138.56,0.04901756]
[1741500137518,37.38391512,138.59,138.56,0.04901756]
[1741500137723,30.16661512,138.59,138.56,0.04901756]
[1741500137925,7.82849894,138.58,138.56,0.04901756]
[1741500138126,15.04599894,138.58,138.56,0.04901756]
[1741500139023,7.2178,138.57,138.56,0.04901756]
[1741500139425,33.58849894,138.58,138.56,0.04901756]
[1741500139735,40.80589894,138.58,138.56,0.04901756]
[1741500140230,25.76,138.58,138.56,0.04901756]
[1741500140430,0.05214929,138.59,138.56,0.04901756]
[1741500140828,30.16661512,138.59,138.56,0.04901756]
[1741500141232,37.38371512,138.59,138.56,0.04901756]
[1741500141627,7.82849894,138.58,138.56,0.04901756]
[1741500141833,7.2178,138.57,138.56,0.04901756]
[1741500147336,33.60849894,138.58,138.49,7.2216]
[1741500147531,7.82849894,138.53,138.47,9.88699894]
[1741500147730,7.82849894,138.53,138.47,35.64699894]
[1741500148233,7.82849894,138.53,138.48,25.76]
[1741500148434,0.04723903,138.51,138.49,7.27674754]
[1741500149237,0.04723903,138.51,138.49,0.05504754]
[1741500151941,0.04723903,138.51,138.49,7.27664754]
[1741500152136,30.11446583,138.57,138.5,33.58849894]
[1741500152337,30.11446583,138.57,138.52,7.82849894]
[1741500152542,30.11446583,138.57,138.53,27.7581]
[1741500152940,30.11446583,138.57,138.55,7.2185]
[1741500153141,30.16027807,138.57,138.55,0.04660171]
[1741500153643,30.11446583,138.56,138.55,0.04660171]
[1741500154046,30.11446583,138.56,138.55,7.26550171]
[1741500154442,30.11446583,138.56,138.55,0.04660171]
[1741500155947,30.11446583,138.56,138.55,7.26550171]
[1741500156345,0.04581224,138.57,138.55,7.26550171]
[1741500157148,0.04581224,138.57,138.56,7.2183]
[1741500157337,0.04581224,138.57,138.55,0.04660171]
[1741500159549,0.04581224,138.57,138.56,7.2183]
[1741500169666,0.04581224,138.57,138.55,0.04660171]
[1741500169957,0.04581224,138.57,138.55,7.26520171]
[1741500172661,0.04581224,138.57,138.55,0.04660171]
[1741500172962,7.82849894,138.56,138.55,0.04660171]
[1741500173555,15.04679894,138.56,138.55,0.04660171]
[1741500176165,15.04679894,138.56,138.48,1.8852]
[1741500176166,7.82849894,138.56,138.48,1.8852]
[1741500176361,7.82849894,138.51,138.48,1.8852]
[1741500177362,7.2218,138.5,138.48,1.93467119]
[1741500178064,7.88101596,138.51,138.48,0.04947119]
[1741500178258,15.05049894,138.49,138.48,0.04947119]
[1741500178960,40.77049894,138.49,138.48,0.04947119]
[1741500181664,33.54849894,138.49,138.43,1.9226]
[1741500181864,15.05219894,138.46,138.43,1.9226]
[1741500182163,40.77219894,138.46,138.43,1.9226]
[1741500182565,33.54849894,138.46,138.43,1.9226]
[1741500182970,33.59451675,138.46,138.43,1.9759857]
[1741500183268,7.82849894,138.44,138.28,118.42951198]
[1741500183567,7.82849894,138.37,138.31,9.87969894]
[1741500183761,40.99689894,138.37,138.31,2.0512]
[1741500183964,33.76849894,138.37,138.31,2.0512]
[1741500184264,7.82849894,138.35,138.31,2.0512]
[1741500184464,7.8792462,138.35,138.33,0.05455588]
[1741500184667,26.06,138.34,138.33,0.05455588]
[1741500185371,38.38418929,138.34,138.33,0.05455588]
[1741500186571,26.06,138.34,138.33,0.05455588]
[1741500187072,42.00418929,138.34,138.29,76.98948155]
[1741500187268,12.32418929,138.3,138.28,10.05468985]
[1741500187574,33.4324,138.29,138.28,9.82528985]
[1741500187766,33.4324,138.29,138.27,198.73064704]
[1741500187967,12.32418929,138.28,138.27,198.73064704]
[1741500188173,12.32418929,138.28,138.27,0.04952355]
[1741500188371,15.94418929,138.28,138.27,0.04952355]
[1741500188672,12.32418929,138.28,138.27,0.04952355]
[1741500189267,15.94418929,138.28,138.16,6.017]
[1741500189463,12.32418929,138.24,138.16,6.017]
[1741500189668,26.28,138.23,138.16,6.017]
[1741500190272,26.28,138.23,138.17,12.32418929]
[1741500190575,12.32418929,138.28,138.18,26.3518706]
[1741500190576,0.04755713,138.21,138.18,26.3518706]
[1741500190772,26.32,138.28,138.19,12.32418929]
[1741500191172,12.32418929,138.3,138.24,7.235]
[1741500191173,26.32,138.29,138.24,7.235]
[1741500191371,26.32,138.29,138.22,26.32]
[1741500191566,26.32,138.29,138.24,7.2346]
[1741500191967,0.05138795,138.28,138.25,0.04701214]
[1741500192170,56.47446583,138.32,138.26,7.2335]
[1741500192474,56.47446583,138.32,138.25,0.04701214]
[1741500193375,0.05344404,138.3,138.25,26.42701214]
[1741500193974,12.32418929,138.36,138.25,38.75120143]
[1741500194278,77.96900685,138.38,138.29,12.32418929]
[1741500194575,19.55248929,138.37,138.27,12.32418929]
[1741500194977,19.55248929,138.37,138.29,7.232]
[1741500195176,0.05246806,138.33,138.31,0.05385241]
[1741500197477,0.05246806,138.33,138.31,7.28515241]
[1741500197681,0.05246806,138.33,138.31,7.21957337]
[1741500197976,0.05246806,138.33,138.26,1.9253]
[1741500198177,0.05246806,138.33,138.32,7.2309]
[1741500199279,0.05246806,138.33,138.28,1.9693]
[1741500199883,0.05246806,138.33,138.32,7.2309]
[1741500202572,0.05246806,138.33,138.31,7.2843296]
[1741500202780,0.05246806,138.33,138.28,28.4293]
[1741500203281,0.05246806,138.33,138.32,7.2309]
[1741500204379,0.05246806,138.33,138.31,0.05099146]
[1741500204577,26.49246806,138.33,138.28,1.9693]
[1741500205977,26.49246806,138.33,138.29,0.022477]
[1741500206484,26.49246806,138.33,138.26,1.9253]
[1741500207278,26.49246806,138.33,138.31,7.2312]
[1741500207678,26.49246806,138.33,138.26,1.9253]
[1741500207879,26.49246806,138.33,138.3,7.2316]
[1741500208074,26.49246806,138.33,138.26,1.9253]
[1741500209185,26.49246806,138.33,138.3,7.2315]
[1741500211683,26.49246806,138.33,138.26,3.7893]
[1741500211889,26.49246806,138.33,138.31,7.2313]
[1741500212889,20.99272146,138.32,138.31,7.2313]
[1741500215591,158.55938273,138.32,138.29,7.88465319]
[1741500216692,78.25414052,138.32,138.29,7.88465319]
[1741500217492,78.25414052,138.32,138.31,7.2313]
[1741500217795,75.14884052,138.32,138.31,7.2313]
[1741500218192,120.45786332,138.32,138.31,7.2314]
[1741500220799,0.05246806,138.33,138.29,7.88465319]
[1741500221098,0.05246806,138.33,138.32,7.2309]
[1741500223091,0.05246806,138.33,138.31,7.2311]
[1741500223497,0.05246806,138.33,138.29,7.88465319]
[1741500223800,0.05246806,138.33,138.32,7.2309]
[1741500230305,40.8202,138.3,138.29,7.88465319]
[1741500230911,40.8202,138.3,138.29,15.11705319]
[1741500231914,40.8202,138.3,138.29,7.2324]
[1741500234919,40.8202,138.3,138.29,15.11705319]
[1741500235306,40.8202,138.3,138.29,17.08665319]
[1741500236916,40.8202,138.3,138.29,9.85425319]
[1741500237216,0.05246806,138.33,138.29,7.88465319]
[1741500238022,0.05246806,138.33,138.32,7.2309]
[1741500243318,0.05246806,138.33,138.31,7.2312]
[1741500243621,0.05246806,138.33,138.29,9.91775319]
[1741500244013,0.05246806,138.33,138.3,7.2318]
[1741500244915,0.05246806,138.33,138.29,7.88465319]
[1741500245518,0.05246806,138.33,138.32,7.2309]
[1741500245918,0.05246806,138.33,138.31,7.88465319]
[1741500245919,0.05246806,138.33,138.29,7.88465319]
[1741500246116,34.15712125,138.33,138.27,7.88465319]
[1741500246520,41.38772125,138.33,138.27,7.88465319]
[1741500246717,41.38772125,138.33,138.29,7.232]
[1741500246921,34.15712125,138.33,138.27,7.88465319]
[1741500247324,26.27246806,138.33,138.31,7.2312]
[1741500249418,26.27246806,138.33,138.32,7.2309]
[1741500249722,0.05246806,138.33,138.32,7.2309]
[1741500250024,42.7691,138.3,138.29,7.88465319]
[1741500250425,39.6634,138.3,138.29,7.88465319]
[1741500250722,0.05246806,138.33,138.32,7.2309]
[1741500250925,0.05246806,138.33,138.32,15.11555319]
[1741500255731,0.05246806,138.33,138.31,7.2312]
[1741500256025,0.05246806,138.33,138.3,34.06465319]
[1741500256234,7.2312,138.32,138.28,15.11725319]
[1741500256428,7.2312,138.32,138.28,7.88465319]
[1741500256926,7.2312,138.32,138.29,7.2321]
[1741500258324,0.05246806,138.33,138.3,7.2315]
[1741500259925,0.05246806,138.33,138.31,7.2313]
[1741500260125,0.05246806,138.33,138.3,7.88465319]
[1741500260630,0.05246806,138.33,138.31,7.2309]
[1741500261027,0.05246806,138.33,138.3,7.88465319]
[1741500261632,7.28286806,138.33,138.3,15.11635319]
[1741500262437,7.28286806,138.33,138.3,7.2317]
[1741500266536,0.05246806,138.33,138.3,7.2317]
[1741500266835,0.05246806,138.33,138.32,7.2309]
[1741500268533,7.28296806,138.33,138.3,7.2316]
[1741500269131,7.2309,138.32,138.29,15.11685319]
[1741500270033,0.05246806,138.33,138.29,7.88465319]
[1741500270231,0.05246806,138.33,138.3,7.2318]
[1741500272242,0.05246806,138.33,138.29,7.88465319]
[1741500272638,0.05246806,138.33,138.31,7.2313]
[1741500273239,0.05246806,138.33,138.32,7.2309]
[1741500274846,0.05246806,138.33,138.28,7.88465319]
[1741500275434,7.28316806,138.33,138.29,7.2321]
[1741500275836,7.231,138.32,138.28,15.11745319]
[1741500276942,7.28306806,138.33,138.29,7.2321]
[1741500277441,0.05246806,138.33,138.29,7.2321]
[1741500277641,7.2309,138.32,138.29,7.2321]
[1741500278036,0.05246806,138.33,138.28,7.88465319]
[1741500278236,0.05246806,138.33,138.3,7.88465319]
[1741500280048,0.05246806,138.33,138.31,7.2314]
[1741500280242,0.05246806,138.33,138.3,7.88465319]
[1741500281546,0.05246806,138.33,138.32,7.2309]
[1741500282343,7.28326806,138.33,138.3,7.88465319]
[1741500282741,0.05246806,138.33,138.3,7.88465319]
[1741500283443,7.93712125,138.33,138.26,1.864]
[1741500283641,0.05246806,138.33,138.29,7.88465319]
[1741500284340,0.05246806,138.33,138.3,7.88465319]
[1741500284641,0.05246806,138.33,138.31,7.2314]
[1741500285641,0.05246806,138.33,138.3,7.88465319]
[1741500285847,0.05246806,138.33,138.32,7.2309]
[1741500286445,0.05246806,138.33,138.31,7.2313]
[1741500286854,0.05246806,138.33,138.29,26.1]